Workbook

Sheet 1. Forside
A1: Mariagerfjord spildevand A/S
D8: Bilag A
D13: Indholdsfortegnelse
C16: Fane nr. 2 | D16: Samlet prisloft
C17: Fane nr. 3 | D17: Driftsomkostninger
C18: Fane nr. 4 | D18: Historiske investeringer
C19: Fane nr. 5 | D19: Gennemførte investeringer
C20: Fane nr. 6 | D20: Korrektion investeringer
C21: Fane nr. 7 | D21: Planlagte investeringer
C22: Fane nr. 8 | D22: 1:1 omkostninger
C23: Fane nr. 9 | D23: Miljø- og servicemål
C24: Fane nr. 10 | D24: Klimatilpasning
C25: Fane nr. 11 | D25: Nettofinansielle poster
C26: Fane nr. 12 | D26: Over- eller underdækning
C27: Fane nr. 13 | D27: Kontrol med indtægtsrammen og oversigt over ekstraordinære effektiviseringsgevinster

Sheet 2. Samlet prisloft
A1: ='1. Forside'!A1 -> Mariagerfjord spildevand A/S
B4: Fane 2. Samlet prisloft for 2015
B6: Driftsomkostninger
B7: Driftsomkostninger i prisloftet for 2014 | C7: ='3. Driftsomkostninger'!C20 -> 31226834.13 | D7: kr.
B8: Bortfald af væsentlige omkostninger | C8: =-'3. Driftsomkostninger'!C16 -> 0 | D8: kr.
B9: Korrektion for prisudviklingen 2014-2015 | C9: ='3. Driftsomkostninger'!C22 -> 24981.4673 | D9: kr.
B10: Forhøjelse til effektivt niveau iht. benchmarkingen | C10: ='3. Driftsomkostninger'!C28 -> 0 | D10: kr.
B11: Korrektion for generelt effektiviseringskrav | C11: =-'3. Driftsomkostninger'!C34 -> -137398.0702 | D11: kr.
B12: Korrektion for individuelt effektiviseringskrav | C12: =-'3. Driftsomkostninger'!C43 -> -814239.6998 | D12: kr.
B13: Driftsomkostninger i alt | C13: =SUM(C7:C12) -> 30300177.82 | D13: kr. | E13: =C13 -> 30300177.82 | F13: kr.
B14: Investeringer
B15: Tillæg for historiske investeringer | C15: ='4. Historiske investeringer'!C9 -> 51355823.69 | D15: kr.
B16: Tillæg for gennemførte investeringer i 2011-2013 | C16: ='5. Gennemførte investeringer'!F48 -> 7695609.107 | D16: kr.
B17: Korrektion af tillæg for planlagte investeringer vedrørende 2013 | C17: ='6. Korrektion investeringer'!C10 -> 749363.9267 | D17: kr.
B18: Tillæg for planlagte investeringer i 2014 og 2015 | C18: ='7. Planlagte investeringer'!F25 -> 3699666.667 | D18: kr.
B19: Investeringstillæg i alt | C19: =SUM(C15:C18) -> 63500463.39 | D19: kr. | E19: =C19 -> 63500463.39 | F19: kr.
B20: Øvrige omkostninger mv.
B21: Tillæg for 1:1 omkostninger i 2015 | C21: ='8. 1-1 omkostninger'!C11 -> 1158000 | D21: kr.
B22: Tillæg vedr. revisorerklæringer og DANVA/FVD-kontingent | C22: ='8. 1-1 omkostninger'!C19 -> 130000 | D22: kr.
B23: Korrektion ift. faktiske 1:1 omkostninger i 2013 | C23: ='8. 1-1 omkostninger'!C25 -> 629660 | D23: kr.
B24: Tillæg for driftsomkostninger til miljø- og servicemål i 2015 | C24: ='9. Miljø- og servicemål'!C8 -> 150000 | D24: kr.
B25: Korrektion ift. faktiske driftsomkostninger til miljø- og servicemål i 2013 | C25: ='9. Miljø- og servicemål'!C15 -> 92475 | D25: kr.
B26: Tillæg for driftsomkostninger til medfinansiering af klimatilpasningsprojekter i 2015 | C26: ='10. Klimatilpasning'!C9 -> 0 | D26: kr.
B27: Korrektion ift. faktiske omkostninger til medfinansiering af klimatilpasningsprojekter i 2013 | C27: ='10. Klimatilpasning'!C16 -> 0 | D27: kr.
B28: Tillæg/fradrag for nettofinansielle poster i 2015 | C28: ='11. Nettofinansielle poster'!C9 -> 14300000 | D28: kr.
B29: Korrektion ift. faktiske nettofinansielle poster i 2013 | C29: ='11. Nettofinansielle poster'!C16 -> -4390651 | D29: kr.
B30: Øvrige omkostninger mv. i alt | C30: =SUM(C21:C29) -> 12069484 | D30: kr. | E30: =C30 -> 12069484 | F30: kr.
B31: Historisk over- eller underdækning
B32: Tillæg/fradrag for over- eller underdækning til og med 2010 | C32: ='12. Over- eller underdækning'!C11 -> -5373080.497 | D32: kr. | E32: =C32 -> -5373080.497 | F32: kr.
B33: Korrektion i forhold til tidligere indtægtsramme
B34: Korrektion for overholdelse af indtægtsramme i prisloft 2013 | C34: ='13. Kontrol med indtægtsrammen'!E27 -> 2301519.978 | D34: kr. | E34: =C34 -> 2301519.978 | F34: kr.
B35: Samlet prisloft
B36: Indtægtsramme i 2015 | E36: =SUM(E13:E34) -> 102798564.7 | F36: kr.
B37: Debiteret vandmængde i 2013 | E37: 1909422 | F37: m3
B38: Prisloft 2015 | E38: =E36/E37 -> 53.83753026 | F38: kr./m3

Sheet 3. Driftsomkostninger
A1: ='1. Forside'!A1 -> Mariagerfjord spildevand A/S
B4: Fane 3. Driftsomkostninger
B6: Driftsomkostningerne i prisloftet for 2014
B7: Korrigerede driftsomkostninger i prisloftet for 2013 (DOiPL 2013) | C7: 32154172.63 | D7: kr.
B8: Prisfremskrivning 1,5 pct. | C8: =0.015*SUM(C7:C7) -> 482312.5895 | D8: kr.
B9: Generelt effektiviseringskrav (0 pct.) | C9: 0 | D9: kr.
B10: Individuelt effektiviseringskrav | C10: -1409651.099 | D10: kr.
B11: Driftsomkostningerne i prisloftet for 2014 (DOiPL 2014) | C11: =SUM(C7:C10) -> 31226834.13 | D11: kr.
B14: Korrektion for forventet bortfald af væsentlige omkostninger
B15: Selskabets indberettede bortfald af væsentlige omkostninger inden 2015 | C15: 0 | D15: kr.
B16: Korrektion for forventet bortfald | C16: =SUM(C15:C15) -> 0 | D16: kr.
B19: Korrektion for prisudviklingen fra 2014-2015
B20: Driftsomkostningerne i prisloftet for 2014 | C20: =C11-C16 -> 31226834.13 | D20: kr.
B21: Prisudvikling 2014 - 2015 | C21: 0.08 | D21: pct.
B22: Korrektion for prisudvikling | C22: =C20*(C21/100) -> 24981.4673 | D22: kr.
B25: Eventuel forhøjelse til effektivt niveau iht. benchmarkingen
B26: Selskabets effektive driftsomkostninger iht. benchmarkingen | C26: 23772988.82 | D26: kr.
B27: Selskabets pristalskorrigerede driftsomkostninger i 2015-niveau | C27: =C20+C22 -> 31251815.59 | D27: kr.
B28: Eventuel forhøjelse til effektivt niveau | C28: =IF(C27>C26,0,C26-C27) -> 0 | D28: kr.
B31: Korrektion for generelt effektiviseringskrav
B32: Driftsomkostningerne i prisloftet for 2014 | C32: =C20 -> 31226834.13 | D32: kr.
B33: Generelt effektiviseringskrav | C33: 0.44 | D33: pct.
B34: Endeligt generelt effektiviseringskrav | C34: =C32*(C33/100) -> 137398.0702 | D34: kr.
B37: Korrektion for individuelt effektiviseringskrav
B38: Rå effektiviseringspotentiale | C38: 7453845.306 | D38: kr.
B39: Effektiviseringspotentiale efter eventuel korrektion for særlige forhold | C39: 7453845.306 | D39: kr.
B40: Effektiviseringspotentiale efter forsigtighedshensyn | C40: 3256958.799 | D40: kr.
B41: Effektiviseringspotentiale efter eventuel korrektion for sammensætning af signifikante costdrivere | C41: 3256958.799 | D41: kr.
B42: Umiddelbart effektiviseringskrav | C42: 814239.6998 | D42: kr.
B43: Endeligt individuelt effektiviseringskrav | C43: =IF(C42>0.05*C20,0.05*C20,IF(C42<0.01*C20,0,C42)) -> 814239.6998 | D43: kr.

Sheet 4. Historiske investeringer
A1: ='3. Driftsomkostninger'!A1 -> Mariagerfjord spildevand A/S
B4: Fane 4. Historiske investeringer
B6: Tillæg for historiske investeringer
B7: Værdi af selskabets materielle anlægsaktiver pr. 1. januar 2010 | C7: 2024589901 | D7: kr.
B8: Den årlige standardafskrivning på de materielle anlægsaktiver iht. POLKA | C8: 51355823.69 | D8: kr.
B9: Tillæg i alt i 2015 | C9: =C8 -> 51355823.69 | D9: kr.

Sheet 5. Gennemførte investeringer
A1: ='4. Historiske investeringer'!A1 -> Mariagerfjord spildevand A/S
B4: Fane 5. Gennemførte investeringer i 2010 - 2013
B6: Tillæg for gennemførte investeringer i 2013
B7: Beskrivelse af investeringen | C7: Årstal | D7: Std. levetid (år) | E7: Anskaffelses-pris (kr.) | F7: Afskrivning
B8: Mindre renseanlæg < 5.000 PE uden mulighed for opdeling | C8: 2013 | D8: 40 | E8: 70666 | F8: =E8/D8 -> 1766.65 | G8: kr.
B9: Indløb med riste, Konstruktioner | C9: 2013 | D9: 60 | E9: 8832727 | F9: =E9/D9 -> 147212.1167 | G9: kr.
B10: Indløb med riste, Mek/EL | C10: 2013 | D10: 20 | E10: 11040909 | F10: 552045.45 | G10: kr.
B11: Indløb med riste, SRO | C11: 2013 | D11: 10 | E11: 2208182 | F11: 220818.2 | G11: kr.
B12: Sand- og fedtfang, Kontruktioner | C12: 2013 | D12: 60 | E12: 4416364 | F12: 73606.06667 | G12: kr.
B13: Sand- og fedtfang, Mek/EL | C13: 2013 | D13: 20 | E13: 5520454 | F13: 276022.7 | G13: kr.
B14: Sand- og fedtfang, SRO | C14: 2013 | D14: 10 | E14: 1104091 | F14: 110409.1 | G14: kr.
B15: Beluftningstanke, Konstruktioner | C15: 2013 | D15: 60 | E15: 11040909 | F15: 184015.15 | G15: kr.
B16: Beluftningstanke, Mek/EL | C16: 2013 | D16: 20 | E16: 13801136 | F16: 690056.8 | G16: kr.
B17: Beluftningstanke, SRO | C17: 2013 | D17: 10 | E17: 2760227 | F17: 276022.7 | G17: kr.
B18: Efterklaringstanke, Konstruktioner | C18: 2013 | D18: 60 | E18: 6624546 | F18: 110409.1 | G18: kr.
B19: Efterklaringstanke, Mek/El | C19: 2013 | D19: 20 | E19: 8280682 | F19: 414034.1 | G19: kr.
B20: Efterklaringstanke, SRO | C20: 2013 | D20: 10 | E20: 1656136 | F20: 165613.6 | G20: kr.
B21: Ledningsnet = Ø 200 mm | C21: 2013 | D21: 75 | E21: 43396154 | F21: 578615.3867 | G21: kr.
B22: Ø 200 mm < Ledningsnet = Ø 500 mm | C22: 2013 | D22: 75 | E22: 26527648 | F22: 353701.9733 | G22: kr.
B23: Ø 500 mm < Ledningsnet = Ø 800 mm | C23: 2013 | D23: 75 | E23: 49072765 | F23: 654303.5333 | G23: kr.
B24: Ø 1200 mm < Ledningsnet = Ø 1600 mm | C24: 2013 | D24: 75 | E24: 252000 | F24: 3360 | G24: kr.
B25: Ø 800 mm < Ledningsnet = Ø 1000 mm | C25: 2013 | D25: 75 | E25: 463283 | F25: 6177.106667 | G25: kr.
B26: Ø 1000 mm < Ledningsnet = Ø 1200 mm | C26: 2013 | D26: 75 | E26: 409273 | F26: 5456.973333 | G26: kr.
B27: Brønde | C27: 2013 | D27: 75 | E27: 6240085 | F27: 83201.13333 | G27: kr.
B28: Stik | C28: 2013 | D28: 75 | E28: 5700364 | F28: 76004.85333 | G28: kr.
B29: Pumpestationer i brønde (< 6,25 m2), Konstruktioner | C29: 2013 | D29: 50 | E29: 641050 | F29: 12821 | G29: kr.
B30: Pumpestationer i brønde (< 6,25 m2), Mek/EL | C30: 2013 | D30: 20 | E30: 728229 | F30: 36411.45 | G30: kr.
B31: Pumpestationer i brønde (< 6,25 m2), SRO | C31: 2013 | D31: 10 | E31: 2771700 | F31: 277170 | G31: kr.
B32: Pumpestationer m. overbygning (< 20 m2), Konstruktioner | C32: 2013 | D32: 50 | E32: 4813850 | F32: 96277 | G32: kr.
B33: Pumpestationer m. overbygning (< 20 m2), Mek/EL | C33: 2013 | D33: 20 | E33: 900000 | F33: 45000 | G33: kr.
B34: Pumpestationer m. overbygning (< 20 m2), SRO | C34: 2013 | D34: 10 | E34: 150000 | F34: 15000 | G34: kr.
B35: Kælder | C35: 2013 | D35: 75 | E35: 2000000 | F35: 26666.66667 | G35: kr.
B36: Pumpeinstallation Miljøklasse A (100-300 l/s) - Mek/EL | C36: 2013 | D36: 20 | E36: 3613234 | F36: 180661.7 | G36: kr.
B37: Pumpeinstallation Miljøklasse A (100-300 l/s) - SRO | C37: 2013 | D37: 10 | E37: 124370 | F37: 12437 | G37: kr.
B38: Forsinkelsesbassiner, lukkede uden automatisk rensning og SRO Miljøklasse B (mindre end 1.000 m3) | C38: 2013 | D38: 50 | E38: 670000 | F38: 13400 | G38: kr.
B39: Forsinkelsesbassiner, lukkede med automatisk rensning og SRO Miljøklasse A (500-1.000 m3) - Konstruktioner | C39: 2013 | D39: 75 | E39: 5070758 | F39: 67610.10667 | G39: kr.
B40: Jordbassin Klasse B | C40: 2013 | D40: 50 | E40: 4799641 | F40: 95992.82 | G40: kr.
B41: Indløb-/udløbsarrangement | C41: 2013 | D41: 75 | E41: 170551 | F41: 2274.013333 | G41: kr.
B42: Administrationbygninger | C42: 2013 | D42: 75 | E42: 8544218 | F42: 113922.9067 | G42: kr.
B43: Værksteder, garager | C43: 2013 | D43: 75 | E43: 8544218 | F43: 113922.9067 | G43: kr.
B44: Køretøjer, små lastvogne (< 3.500 kg.) | C44: 2013 | D44: 5 | E44: 1118489 | F44: 223697.8 | G44: kr.
B45: Køretøjer, entreprenørmaskiner | C45: 2013 | D45: 5 | E45: 2056097 | F45: 411219.4 | G45: kr.
B46: Tillæg for 2013 | F46: =SUM(F8:F45) -> 6727337.463 | G46: kr.
B47: Tillæg for 2010 - 2012 | F47: 968271.6433 | G47: kr.
B48: Samlet tillæg for gennemførte investeringer | F48: =F46+F47 -> 7695609.107 | G48: kr.

Sheet 6. Korrektion investeringer
A1: ='5. Gennemførte investeringer'!A1 -> Mariagerfjord spildevand A/S
B4: Fane 6. Korrektion af tillæg for planlagte investeringer
B6: Korrektion af tillæg for planlagte investeringer vedr. 2013
B7: Tillæg for planlagte investeringer i 2013 i prisloft 2013 | C7: 6414644 | D7: kr.
B8: Tillæg for planlagte investeringer i 2013 i prisloft 2014 | C8: 6290667 | D8: kr.
B9: Selskabets faktiske afskrivninger på gennemførte investeringer i 2013 | C9: ='5. Gennemførte investeringer'!F46 -> 6727337.463 | D9: kr.
B10: Korrektion af tillæg for planlagte investeringer vedr. 2013 | C10: =C9-C7+C9-C8 -> 749363.9267 | D10: kr.

Sheet 7. Planlagte investeringer
A1: ='6. Korrektion investeringer'!A1 -> Mariagerfjord spildevand A/S
B4: Fane 7. Planlagte investeringer
B6: Tillæg for planlagte investeringer i 2014 og 2015
B7: Beskrivelse af investeringen | C7: Årstal | D7: Std. levetid (år) | E7: Anskaffelses-pris (kr.) | F7: Afskrivning
B8: Jordbassin Klasse B | C8: 2014 | D8: 50 | E8: 500000 | F8: =E8/D8 -> 10000 | G8: kr.
B9: Ø 200 mm < Ledningsnet = Ø 500 mm | C9: 2014 | D9: 75 | E9: 80800000 | F9: =E9/D9 -> 1077333.333 | G9: kr.
B10: Rådnetanke, slam, Konstruktioner | C10: 2014 | D10: 60 | E10: 8000000 | F10: =E10/D10 -> 133333.3333 | G10: kr.
B11: Pumpeinstallation Miljøklasse A (300-600 l/s) - Mek/EL | C11: 2014 | D11: 20 | E11: 10000000 | F11: 500000 | G11: kr.
B12: Pumpestationer m. overbygning (< 20 m2), Konstruktioner | C12: 2014 | D12: 50 | E12: 30000000 | F12: 600000 | G12: kr.
B13: Ledningsnet = Ø 200 mm | C13: 2014 | D13: 75 | E13: 6600000 | F13: 88000 | G13: kr.
B14: Ledningsnet > Ø 1600 mm (rørbassiner og transportledninger) | C14: 2014 | D14: 75 | E14: 9200000 | F14: 122666.6667 | G14: kr.
B15: Pumpestationer m. overbygning (< 20 m2), Konstruktioner | C15: 2014 | D15: 50 | E15: 2500000 | F15: 50000 | G15: kr.
B16: Ø 200 mm < Ledningsnet = Ø 500 mm | C16: 2014 | D16: 75 | E16: 500000 | F16: 6666.666667 | G16: kr.
B17: Ø 500 mm < Ledningsnet = Ø 800 mm | C17: 2014 | D17: 75 | E17: 500000 | F17: 6666.666667 | G17: kr.
B18: Pumpestationer m. overbygning (< 20 m2), Konstruktioner | C18: 2015 | D18: 50 | E18: 15000000 | F18: 300000 | G18: kr.
B19: Slutafvanding, slam - højteknologisk (centrifuger), Konstruktioner | C19: 2015 | D19: 60 | E19: 2100000 | F19: 35000 | G19: kr.
B20: Pumpeinstallation Miljøklasse A (100-300 l/s) - Mek/EL | C20: 2015 | D20: 20 | E20: 5000000 | F20: 250000 | G20: kr.
B21: Ø 200 mm < Ledningsnet = Ø 500 mm | C21: 2015 | D21: 75 | E21: 29000000 | F21: 386666.6667 | G21: kr.
B22: Ø 500 mm < Ledningsnet = Ø 800 mm | C22: 2015 | D22: 75 | E22: 10000000 | F22: 133333.3333 | G22: kr.
B23: Tillæg for 2014 | F23: =SUMIF(C8:C22,"2014",F8:F22) -> 2594666.667 | G23: kr.
B24: Tillæg for 2015 | F24: =SUMIF(C8:C22,"2015",F8:F22) -> 1105000 | G24: kr.
B25: Tillæg i alt | F25: =F23+F24 -> 3699666.667 | G25: kr.

Sheet 8. 1-1 omkostninger
A1: ='7. Planlagte investeringer'!A1 -> Mariagerfjord spildevand A/S
B4: Fane 8. 1:1 omkostninger
B6: Tillæg for budgetterede 1:1 omkostninger i 2015
B7: Betaling til Forsyningssekretariatet | C7: 33000 | D7: kr.
B8: Spildevandsafgift | C8: 900000 | D8: kr.
B9: Køb af varer og tjenesteydelser hos et andet prisloftreguleret vandselskab | C9: 200000 | D9: kr.
B10: Ejendomsskatter | C10: 25000 | D10: kr.
B11: Tillæg i alt | C11: =SUM(C7:C10) -> 1158000 | D11: kr.
B16: Tillæg for budgetterede nødvendige udgifter til revisorerklæringer samt ordinært medlemskab af DANVA og FVD i 2015
B17: Betaling for ordinært medlemskab af DANVA/FVD | C17: 105000 | D17: kr.
B18: Betaling for revisorerklæringer | C18: 25000 | D18: kr.
B19: Tillæg i alt | C19: =SUM(C17:C18) -> 130000 | D19: kr.
B22: Korrektion af tillæg for faktiske 1:1 omkostninger (inkl. revisorerklæringer og ordinært medlemskab af DANVA/FVD) i 2013
B23: Selskabets faktiske 1:1 omkostninger mv. i 2013, jf. reguleringsregnskabet | C23: 2161660 | D23: kr.
B24: Tillæg for budgetterede 1:1 omkostninger mv. i prisloft 2013 | C24: 1532000 | D24: kr.
B25: Korrektion af tillæg for budgetterede 1:1 omkostninger mv. i 2013 | C25: =C23-C24 -> 629660 | D25: kr.

Sheet 9. Miljø- og servicemål
A1: ='8. 1-1 omkostninger'!A1 -> Mariagerfjord spildevand A/S
B4: Fane 9. Driftsomkostninger til miljø- og servicemål
B6: Tillæg for budgetterede driftsomkostninger til miljø- og servicemål i 2015
B7: Skærpede rensningskrav | C7: 150000 | D7: kr.
B8: Tillæg i alt | C8: =SUM(C7:C7) -> 150000 | D8: kr.
B12: Korrektion af tillæg for faktiske driftsomkostninger til miljø- og servicemål i 2013
B13: Selskabets faktiske driftsomkostninger til miljø- og servicemål i 2013, jf. reguleringsregnskabet | C13: 112475 | D13: kr.
B14: Tillæg for budgetterede driftsomkostninger til miljø- og servicemål i prisloft 2013 | C14: 20000 | D14: kr.
B15: Korrektion af tillæg for budgetterede driftsomkostninger til miljø- og servicemål i 2013 | C15: =C13-C14 -> 92475 | D15: kr.

Sheet 10. Klimatilpasning
A1: ='9. Miljø- og servicemål'!A1 -> Mariagerfjord spildevand A/S
B4: Fane 10. Medfinansiering af klimatilpasningsprojekter
B7: Tillæg for budgetterede omkostninger til medfinansiering af klimatilpasningsprojekter i 2015
C8: 0 | D8: kr.
B9: Tillæg i alt | C9: =SUM(C8:C8) -> 0 | D9: kr.
B13: Korrektion af tillæg for faktiske omkostninger til medfinansiering af klimatilpasningsprojekter i 2013
B14: Selskabets faktiske driftsomkostninger til klimatilpasningsprojekter i 2013, jf. reguleringsregnskabet | D14: kr.
B15: Tillæg for budgetterede driftsomkostninger til klimatilpasningsprojekter i prisloft 2013 | D15: kr.
B16: Korrektion af tillæg for budgetterede omkostninger til klimatilpasningsprojekter i 2013 | C16: =C14-C15 -> 0 | D16: kr.

Sheet 11. Nettofinansielle poster
A1: ='10. Klimatilpasning'!A1 -> Mariagerfjord spildevand A/S
B4: Fane 11. Nettofinansielle poster
B6: Tillæg for budgetterede nettofinansielle poster i 2015
B7: Budgetterede renteudgifter og gebyrer i 2015 | C7: 14400000 | D7: kr.
B8: Budgetterede renteindtægter i 2015 | C8: 100000 | D8: kr.
B9: Tillæg/fradrag i alt | C9: =C7-C8 -> 14300000 | D9: kr.
B13: Korrektion af tillæg for faktiske nettofinansielle poster i 2013
B14: Selskabets faktiske nettofinansielle poster i 2013, jf. reguleringsregnskabet | C14: 3909349 | D14: kr.
B15: Tillæg for budgetterede nettofinansielle poster i prisloft 2013 | C15: 8300000 | D15: kr.
B16: Korrektion af tillæg for budgetterede nettofinansielle poster i 2013 | C16: =C14-C15 -> -4390651 | D16: kr.

Sheet 12. Over- eller underdækning
A1: ='11. Nettofinansielle poster'!A1 -> Mariagerfjord spildevand A/S
B4: Fane 12. Over- eller underdækning til og med 2010
B6: Tillæg/fradrag for over- eller underdækning til og med 2010
B7: Opgjort over- eller underdækning per 31. december 2010 | C7: -51599164 | D7: kr.
B8: Heraf beløb indregnet i prislofterne for 2011 - 2014 | C8: -19360681.02 | D8: kr.
B9: Endnu ikke indregnet over- eller underdækning | C9: =C7-C8 -> -32238482.98 | D9: kr.
B10: Resterende indregningsperiode (fastsat i prisloftet for 2012) | C10: 6 | D10: år
B11: Tillæg/fradrag i alt | C11: =IF(C7=0,0,C9/C10) -> -5373080.497 | D11: kr.

Sheet 13. Kontrol med indtægtsrammen
A1: ='12. Over- eller underdækning'!A1 -> Mariagerfjord spildevand A/S
B4: Fane 13. Korrektion for overholdelse af indtægtsrammen i prisloftet for 2013
B6: Samlet opgørelse vedrørende overholdelse af indtægtsrammen i prisloftet for 2013
B7: Indtægtsramme i prisloftet for 2013 | E7: 90109130.41 | F7: kr.
B8: Ikke anvendt likviditet vedrørende investeringer i 2013
B9: Tillæg for historiske investeringer | C9: 52645408.43 | D9: kr.
B10: Tillæg for gennemførte investeringer i 2011 | C10: 330532 | D10: kr.
B11: Korrektion af tillæg for planlagte investeringer i 2011 | C11: -557223 | D11: kr.
B12: Tillæg for planlagte investeringer i 2012 og 2013 | C12: 7377511 | D12: kr.
B13: Indtægter fra tilslutningsbidrag | C13: 3734810 | D13: kr.
B14: Indtægter fra salg af anlægsaktiver | C14: 0 | D14: kr.
B15: Erstatninger vedr. anlægsaktiver mv. | C15: 0 | D15: kr.
B16: Ekstraordinær effektiviseringsgevinst anvendt til investeringer | C16: 0 | D16: kr.
B17: Udgifter til investeringer | C17: -36541632 | D17: kr.
B18: Ikke anvendt likviditet vedr. investeringer i alt | C18: =SUM(C9:C17) -> 26989406.43 | D18: kr. | E18: =IF(C18<0,0,-C18) -> -26989406.43 | F18: kr.
B19: Ekstraordinære effektiviseringsgevinster anvendt til takstnedsættelse
B20: Ekstraordinær effektiviseringsgevinst anvendt til takstnedsættelse | C20: 0 | D20: kr. | E20: =-C20 -> 0 | F20: kr.
B21: Korrektion af ikke opkrævet tillæg fra 2011 i prisloft 2013
B22: Korrektion af ikke opkrævet tillæg fra 2011 i prisloft 2013 | C22: 0 | D22: kr. | E22: =-C22 -> 0 | F22: kr.
B23: Indtægter fra primære aktiviteter mv.
B24: Indtægter fra kubikmetertakster, faste takster, særbidrag, målergebyrer samt andre takster og gebyrer | C24: 60818204 | D24: kr.
B25: Andre indtægter i prisloftåret, som selskabet har opnået i forbindelse med eller som følge af selskabets primære aktiviteter | C25: 0 | D25: kr.
B26: Indtægter fra primære aktiviteter mv. i alt | C26: =SUM(C24:C25) -> 60818204 | D26: kr. | E26: =-C26 -> -60818204 | F26: kr.
B27: Tillæg/fradrag i prisloftet for 2015 i alt | E27: =E7+E18+E20+E22+E26 -> 2301519.978 | F27: kr.
B31: Oversigt over ekstraordinære effektiviseringsgevinster
C33: 2012 | E33: 2013 | G33: 2014 | I33: 2015 | K33: 2016
B34: Indhentet ekstraordinær effektiviseringsgevinst | C34: 69344 | D34: kr. | E34: 0 | F34: kr. | H34: kr. | J34: kr. | L34: kr.
B35: Gevinst anvendt til investeringer | C35: 69344 | D35: kr. | E35: 0 | F35: kr. | H35: kr. | J35: kr. | L35: kr.
B36: Gevinst anvendt til takstnedsættelse | C36: 0 | D36: kr. | E36: 0 | F36: kr. | H36: kr. | J36: kr. | L36: kr.
B37: Korrektion for effektiviseringsgevinst der ikke er anvendt inden 4 år | C37: 0 | D37: kr. | E37: 0 | F37: kr. | H37: kr. | J37: kr. | K37: =IF(C38>SUM(E35:I36),C38-SUM(E35:I36),0)*-1 -> 0 | L37: kr.
B38: Resterende gevinst | C38: =C34-C35-C36 -> 0 | D38: kr. | E38: =C38+E34-E35-E36 -> 0 | F38: kr. | G38: =E38+G34-G35-G36 -> 0 | H38: kr. | I38: =G38+I34-I35-I36 -> 0 | J38: kr. | K38: =K34-K35-K36+K37+I38 -> 0 | L38: kr.
